Workbook

Sheet Титул
AK2: Утверждаю:
AK3: Директор ______________
AK4: ГБОУ СПО "МППК"
AK5: М.Н. Верхотурцев
AK6: « | AL6: 7 | AN6: » | AO6: июня | AR6: 201 | AT6: 3 | AU6: г
O8: УЧЕБНЫЙ ПЛАН
B9: Государственного образовательного учреждения среднего профессионального образования
C10: «Мишкинский профессионально-педагогический колледж»
J11: по специальности среднего профессионального образования
F16: 230701 | L16: Прикладная информатика (по отраслям)
J19: по программе базовой подготовки
AA24: Квалификация: | AI24: техник-программист
AA27: Форма обучения- | AJ27: очная
AA28: Нормативный срок обучения- | AN28: 3 | AP28: г | AQ28: 10 | AS28: мес
AA29: На базе | AE29: основного общего образования
AA30: Профиль | AE30: Технический

Sheet Сводные
A1: Сводные данные по бюджету времени (в неделях)
A3: Курсы | B3: Обучение по дисциплинам и междисциплинарным курсам | C3: Учебная практика | D3: Производственная практика | F3: Промежуточная аттестация | G3: Государственная итоговая аттестация | H3: Каникулы | I3: Всего
D4: по профилю специальности | E4: преддипломная
E5: (для СПО)
A6: 1 | B6: 2 | C6: 3 | D6: 4 | E6: 5 | F6: 6 | G6: 7 | H6: 8 | I6: 9
A7: I курс | B7: =I7-H7-G7-F7-E7-D7-C7 -> 39 | F7: 2 | H7: 11 | I7: 52
A8: II курс | B8: =I8-H8-G8-F8-E8-D8-C8 -> 38 | C8: 1 | D8: 1 | F8: 1 | H8: 11 | I8: 52
A9: III курс | B9: 30 | C9: 6 | D9: 4 | F9: 2 | H9: 10 | I9: 52
A10: VI курс | B10: 26 | C10: 1 | D10: 2 | E10: 4 | F10: 2 | G10: 6 | H10: 2 | I10: 43
A11: Всего | B11: =SUM(B7:B10) -> 133 | C11: 8 | D11: 7 | E11: 4 | F11: 7 | G11: 6 | H11: 34 | I11: 199

Sheet План уч проц
C2: 230701 Прикладная информатика (по отраслям) | S2: Технич
A3: Индекс | B3: Наименование циклов, дисциплин, профессиональных модулей, МДК, практик | C3: Форма промежуточной аттестации | F3: Учебная нагрузка обучающихся (час.) | L3: Учебная и производственная практика | M3: Распределение обязательной нагрузки по курсам и семестрам[2] (час. в семестр)
F7: максимальная | G7: самостоятельная работа | H7: Обязательная аудиторная | M7: I курс | O7: II курс | Q7: III курс | S7: IV курс
C8: З | D8: ДЗ | E8: Э | H8: всего занятий | I8: в т. ч. | M8: 1 семестр | N8: 2 семестр | O8: 3 семестр | P8: 4 семестр | Q8: 5 семестр | R8: 6 семестр | S8: 7 семестр | T8: 8 семестр
I9: лекций, уроков, семинаров | J9: лаб. и практ. занятий | K9: Курсовая | M9: сем. | N9: сем. | O9: сем. | P9: сем. | Q9: сем. | R9: сем. | S9: сем. | T9: сем.
M10: 17 | N10: 24 | O10: 17 | P10: 23 | Q10: 16 | R10: 24 | S10: 16 | T10: 17
M11: 17 | N11: 22 | O11: 17 | P11: 21 | Q11: 10 | R11: 20 | S11: 16 | T11: 10
M12: нед | N12: нед | O12: нед | P12: нед | Q12: нед | R12: нед | S12: нед | T12: нед
A13: 1 | B13: 2 | C13: 3 | D13: 4 | E13: 5 | F13: 6 | G13: 7 | H13: 8 | I13: 9 | J13: 10 | K13: 11 | L13: 12 | M13: 13 | N13: 14 | O13: 15 | P13: 16 | Q13: 17 | R13: 18 | S13: 19 | T13: 20
A14: О.00 | B14: Общеобразовательный цикл | F14: =SUM(F15:F26) -> 0 | G14: 0 | H14: =SUM(H15:H26) -> 1404 | M14: =SUM(M15:M26) -> 612 | N14: =SUM(N15:N26) -> 792 | O14: =SUM(O15:O75)/O10 -> 146.2941176 | P14: =SUM(P15:P75)/P10 -> 140.826087 | Q14: =SUM(Q15:Q75)/Q10 -> 111.625 | R14: =SUM(R15:R75)/R10 -> 140.1666667 | S14: =SUM(S15:S75)/S10 -> 138 | T14: =(SUM(T15:T75)+144)/T10 -> 100.7058824
A15: ОДБ.01 | B15: Русский язык | E15: 2 | H15: =SUM(M15:R15) -> 78 | M15: 34 | N15: 44
A16: ОДБ.02 | B16: Литература | D16: 2 | H16: =SUM(M16:R16) -> 117 | M16: 51 | N16: 66
A17: ОДБ.03 | B17: Иностранный язык | D17: 2 | H17: 117 | M17: 51 | N17: 66
A18: ОДБ.04 | B18: История | D18: 2 | H18: 78 | M18: 34 | N18: 44
A19: ОДБ.05 | B19: Обществознание (включая экономику и право) | D19: 2 | H19: 78 | M19: 34 | N19: 44
A20: ОДБ.06 | B20: Химия | D20: 2 | H20: 78 | M20: 34 | N20: 44
A21: ОДБ.07 | B21: Биология | D21: 2 | H21: 78 | M21: 34 | N21: 44
A22: ОДБ.08 | B22: Основы безопасности жизнедеятельности | D22: 2 | H22: 78 | M22: 34 | N22: 44
A23: ОДБ.09 | B23: Физическая культура | C23: 1.2 | H23: 117 | M23: 51 | N23: 66
A24: ОДП.01 | B24: Математика | E24: 2 | H24: 234 | M24: 102 | N24: 132
A25: ОДП.02 | B25: Физика | E25: 2 | H25: 195 | M25: 85 | N25: 110
A26: ОДП.03 | B26: Информатика и ИКТ | D26: 2 | H26: 156 | M26: 68 | N26: 88
B27: Всего по циклам | F27: =F28+F33+F36 -> 5078 | G27: =F27-H27 -> 1694 | H27: =H28+H33+H36 -> 3384 | I27: =I28+I33+I36 -> 1744 | J27: =J28+J33+J36 -> 1640 | O27: =O28+O33+O36 -> 612 | P27: =P28+P33+P36 -> 756 | Q27: 360 | R27: 720 | S27: 576 | T27: 360
A28: ОГСЭ.00 | B28: Общий гуманитарный и социально-экономический цикл | F28: =SUM(F29:F32) -> 708 | G28: =SUM(G29:G32) -> 236 | H28: 472 | I28: =SUM(I29:I32) -> 98 | J28: =SUM(J29:J32) -> 374 | O28: =SUM(O29:O32) -> 68 | P28: =SUM(P29:P32) -> 84 | Q28: 40 | R28: 80 | S28: 160 | T28: 40
A29: ОГСЭ.01 | B29: Основы философии | E29: 7 | F29: 54 | G29: 6 | H29: =SUM(O29:T29) -> 48 | I29: 48 | S29: 48
A30: ОГСЭ.02 | B30: История | D30: 7 | F30: 54 | G30: 6 | H30: =SUM(O30:T30) -> 48 | I30: 48 | S30: 48
A31: ОГСЭ.03 | B31: Иностранный язык | C31: 3.8 | F31: 224 | G31: 36 | H31: =SUM(O31:T31) -> 188 | J31: 188 | O31: 34 | P31: 42 | Q31: 20 | R31: 40 | S31: 32 | T31: 20
A32: ОГСЭ.04 | B32: Физическая культура | C32: 3,4,5,6,7,8 | F32: 376 | G32: =F32-H32 -> 188 | H32: =SUM(O32:T32) -> 188 | I32: 2 | J32: 186 | O32: 34 | P32: 42 | Q32: 20 | R32: 40 | S32: 32 | T32: 20
A33: ЕН.00 | B33: Математический и общий естественнонаучный цикл | F33: =SUM(F34:F35) -> 351 | G33: =SUM(G34:G35) -> 117 | H33: =SUM(H34:H35) -> 234 | I33: =SUM(I34:I35) -> 124 | J33: =SUM(J34:J35) -> 110 | O33: =SUM(O34:O35) -> 127 | P33: =SUM(P34:P35) -> 67 | Q33: 20 | R33: 20 | S33: 0 | T33: 0
A34: ЕН.01 | B34: Математика | C34: 3 | E34: 4 | F34: =ROUNDDOWN(H34*1.5,0) -> 228 | G34: =F34-H34 -> 76 | H34: =SUM(O34:T34) -> 152 | I34: 84 | J34: 68 | O34: 127 | P34: 25
A35: ЕН.02 | B35: Дискретная математика | D35: 6 | F35: 123 | G35: =F35-H35 -> 41 | H35: =SUM(O35:T35) -> 82 | I35: 40 | J35: 42 | P35: 42 | Q35: 20 | R35: 20
A36: П.00 | B36: Профессиональный цикл | F36: =F37+F55 -> 4019 | G36: =G37+G55 -> 1341 | H36: 2678 | I36: 1522 | J36: 1156 | O36: =O37+O55 -> 417 | P36: =P37+P55 -> 605 | Q36: 300 | R36: 620 | S36: 416 | T36: 320
A37: ОП.00 | B37: Общепрофессиональные дисциплины | F37: =SUM(F38:F54) -> 2097 | G37: =SUM(G38:G54) -> 701 | H37: 1396 | I37: 874 | J37: 522 | O37: =SUM(O38:O54) -> 183 | P37: =SUM(P38:P54) -> 311 | Q37: 110 | R37: 180 | S37: 352 | T37: 260
A38: ОП.01 | B38: Экономика организации | D38: 8 | F38: 69 | G38: 23 | H38: =SUM(O38:T38) -> 46 | I38: 34 | J38: 12 | S38: 16 | T38: 30
A39: ОП.02 | B39: Теория вероятностей и математическая статистика | D39: 7 | F39: 108 | G39: 36 | H39: 72 | I39: 38 | J39: 34 | R39: 40 | S39: 32
A40: ОП.03 | B40: Менеджмент | D40: 7 | F40: 72 | G40: 8 | H40: 64 | I40: 40 | J40: 24 | S40: 64
A41: ОП.04 | B41: Документационное обеспечение управления | D41: 3 | F41: 51 | G41: 17 | H41: 34 | I41: 14 | J41: 20 | O41: 34
A42: ОП.05 | B42: Правовое обеспечение профессиональной деятельности | C42: 4 | F42: 110 | G42: 62 | H42: 48 | I42: 34 | J42: 14 | O42: 17 | P42: 21 | Q42: 10
A43: ОП.06 | B43: Основы теории информации | D43: 6 | F43: 153 | G43: 51 | H43: 102 | I43: 72 | J43: 30 | P43: 42 | Q43: 20 | R43: 40
A44: ОП.07 | B44: Операционные системы и среды | E44: 4 | F44: 171 | G44: 57 | H44: 114 | I44: 74 | J44: 40 | O44: 81 | P44: 33
A45: ОП.08 | B45: Архитектура электронно-вычислительных машин и вычислительных систем | D45: 6 | F45: 174 | G45: 58 | H45: 116 | I45: 76 | J45: 40 | O45: 34 | P45: 42 | Q45: 20 | R45: 20
A46: ОП.09 | B46: Безопасность жизнедеятельности | D46: 3 | F46: 102 | G46: 34 | H46: 68 | I46: 48 | J46: 20 | P46: 68
A47: ОП.10 | B47: Педагогика | E47: 8 | F47: 186 | G47: 62 | H47: 124 | I47: 84 | J47: 40 | S47: 64 | T47: 60
A48: ОП.11 | B48: Психология | E48: 8 | F48: 186 | G48: 62 | H48: 124 | I48: 84 | J48: 40 | S48: 64 | T48: 60
A49: ОП.12 | B49: Охрана труда | D49: 4 | F49: 61 | G49: 13 | H49: 48 | I49: 38 | J49: 10 | O49: 17 | P49: 21 | Q49: 10
A50: ОП.13 | B50: Инженерная графика | D50: 5 | F50: 93 | G50: 31 | H50: 62 | I50: 14 | J50: 48 | P50: 42 | Q50: 20
A51: ОП.14 | B51: Web дизайн | C51: 8 | F51: 138 | G51: 46 | H51: 92 | I51: 32 | J51: 60 | S51: 32 | T51: 60
A52: ОП.15 | B52: Электротехника | E52: 4 | F52: 123 | G52: 41 | H52: 82 | I52: 52 | J52: 30 | P52: 42 | Q52: 20 | R52: 20
A53: ОП.16 | B53: Электронная техника | D53: 8 | F53: 153 | G53: 51 | H53: 102 | I53: 72 | J53: 30 | R53: 20 | S53: 32 | T53: 50
A54: ОП.17 | B54: Микросхемотехника | D54: 7 | F54: 147 | G54: 49 | H54: 98 | I54: 68 | J54: 30 | Q54: 10 | R54: 40 | S54: 48
A55: ПМ.00 | B55: Профессиональные модули | F55: =F56+F60+F64+F68+F72 -> 1922 | G55: =G56+G60+G64+G68+G72 -> 640 | H55: 1282 | I55: 648 | J55: 634 | K55: 60 | L55: =L56+L60+L64+L68+L72 -> 540 | O55: =O56+O60+O64+O68+O72 -> 234 | P55: =P56+P60+P64+P68+P72 -> 294 | Q55: 190 | R55: 440 | S55: 64 | T55: 60
A56: ПМ.01 | B56: Обработка отраслевой информации | E56: 4 (к) | F56: =F57 -> 279 | G56: =G57 -> 93 | H56: 186 | I56: 126 | J56: 60 | K56: 30 | L56: =L58+L59 -> 72 | O56: =O57 -> 102 | P56: =P57 -> 84 | Q56: 0 | R56: 0 | S56: 0 | T56: 0
A57: МДК.01.01 | B57: Обработка отраслевой информации | D57: 3 | F57: 279 | G57: 93 | H57: =SUM(O57:T57) -> 186 | I57: 126 | J57: 60 | O57: 102 | P57: 84
A58: УП.01 | B58: Учебная практика | C58: 4 | L58: =P58 -> 36 | P58: 36
A59: ПП.01 | B59: Производственная практика | C59: 4 | L59: =P59 -> 36 | P59: 36
A60: ПМ.02 | B60: Разработка, внедрение и адаптация программного обеспечения отраслевой информации | E60: 6(к) | F60: =F61 -> 686 | G60: =G61 -> 228 | H60: 458 | I60: =I61 -> 198 | J60: =J61 -> 260 | L60: =L62+L63 -> 108 | O60: =O61 -> 132 | P60: =P61 -> 126 | Q60: 80 | R60: 120 | S60: 0 | T60: 0
A61: МДК.02.01 | B61: Разработка, внедрение и адаптация программного обеспечения отраслевой информации | E61: 5 | F61: =686 -> 686 | G61: 228 | H61: =SUM(O61:T61) -> 458 | I61: 198 | J61: 260 | O61: 132 | P61: 126 | Q61: 80 | R61: 120
A62: УП.02 | B62: Учебная практика | D62: 5 | L62: =SUM(M62:T62) -> 72 | Q62: 72
A63: ПП 02 | B63: Производственная практика | D63: 6 | L63: =SUM(M63:T63) -> 36 | R63: 36
A64: ПМ.03 | B64: Сопровождение и продвижение программного обеспечения отраслевой направленности | E64: 6(к) | F64: =F65 -> 321 | G64: =G65 -> 107 | H64: 214 | I64: 144 | J64: 70 | L64: =SUM(L66:L67) -> 108 | O64: =O65 -> 0 | P64: =P65 -> 84 | Q64: 50 | R64: 80 | S64: 0 | T64: 0
A65: МДК.03.01 | B65: Сопровождение и продвижение программного обеспечения отраслевой направленности | E65: 4 | F65: 321 | G65: 107 | H65: =SUM(O65:T65) -> 214 | I65: 144 | J65: 70 | P65: 84 | Q65: 50 | R65: 80
A66: УП.03 | B66: Учебная практика | D66: 5 | L66: =SUM(M66:T66) -> 72 | Q66: 72
A67: ПП 03 | B67: Производственная практика | D67: 6 | L67: =SUM(M67:T67) -> 36 | R67: 36
A68: ПМ.04 | B68: Обеспечение проектной деятельности | E68: 6(к) | F68: =SUM(F69:F69) -> 450 | G68: =SUM(G69:G69) -> 150 | H68: =SUM(H69:H69) -> 300 | I68: =SUM(I69:I69) -> 100 | J68: =SUM(J69:J69) -> 200 | K68: 30 | L68: =L70+L71 -> 144 | O68: =O69 -> 0 | P68: =P69 -> 0 | Q68: 60 | R68: 240 | S68: 0 | T68: 0
A69: МДК.04.01 | B69: Обеспечение проектной деятельности | E69: 5 | F69: =ROUNDDOWN(H69*1.5,0) -> 450 | G69: 150 | H69: =SUM(O69:T69) -> 300 | I69: 100 | J69: 200 | Q69: 60 | R69: 240
A70: УП.04 | B70: Учебная практика | C70: 5 | L70: =SUM(M70:T70) -> 72 | Q70: 72
A71: ПП 04 | B71: Производственная практика | D71: 6 | L71: =SUM(M71:T71) -> 72 | R71: 72
A72: ПМ.05 | B72: Методика преподавания информатики с практикумом | E72: 8(к) | F72: =F73 -> 186 | G72: =G73 -> 62 | H72: 124 | I72: 80 | J72: 44 | L72: =L74+L75 -> 108 | O72: =O73 -> 0 | P72: =P73 -> 0 | Q72: 0 | R72: 0 | S72: 64 | T72: 60
A73: МДК.05.01 | B73: Методика преподавания информатики с практикумом | E73: 7 | F73: =ROUNDDOWN(H73*1.5,0) -> 186 | G73: =F73-H73 -> 62 | H73: =SUM(O73:T73) -> 124 | I73: 80 | J73: 44 | S73: 64 | T73: 60
A74: УП.05 | B74: Учебная практика | D74: 8 | L74: =SUM(M74:T74) -> 36 | T74: 36
A75: ПП.05 | B75: Производственная практика | D75: 8 | L75: =SUM(M75:T75) -> 72 | T75: 72
A76: Всего | F76: =SUM(G76+H76) -> 6482 | G76: =SUM(G36+G33+G28+G14) -> 1694 | H76: =SUM(H36+H33+H28+H14) -> 4788 | I76: =SUM(I36+I33+I28+I14) -> 1744 | J76: =SUM(J36+J33+J28+J14) -> 1640 | K76: 60 | L76: =L55 -> 540 | M76: =SUM(M15:M75) -> 612 | N76: 792 | O76: =O27+O82+O83 -> 612 | P76: =P27+P82+P83 -> 828 | Q76: 576 | R76: 864 | S76: 576 | T76: 612
A77: Кол-во часов в неделю | M77: =M14/M11 -> 36 | N77: =N14/N11 -> 36 | O77: =O27/O11 -> 36 | P77: =P27/P11 -> 36 | Q77: 36 | R77: 36 | S77: 36 | T77: 36
A78: ПДП | B78: Преддипломная практика | T78: 144
A79: ГИА | B79: Государственная итоговая аттестация
A80: Консультации на учебную группу по 100 часов в год (всего 400 час.) | H80: Всего | I80: дисциплин и МДК | M80: =(SUM(M15:M26))+M29+M30+M31+M32+M35+M38+M39+M40+M41+M42+M43+M44+M45+M46+M47+M48+M49+M50+M51+M52+M53+M54+M57+M61+M65+M69+M73 -> 612 | N80: =(SUM(N15:N26))+N29+N30+N31+N32+N35+N38+N39+N40+N41+N42+N43+N44+N45+N46+N47+N48+N49+N50+N51+N52+N53+N54+N57+N61+N65+N69+N73 -> 792 | O80: =O27 -> 612 | P80: =P27 -> 756 | Q80: 360 | R80: 720 | S80: 576 | T80: 360
A82: Государственная (итоговая) аттестация 216 часов | I82: учебной практики | M82: =M74+M70+M66+M62+M58 -> 0 | N82: =N74+N70+N66+N62+N58 -> 0 | O82: 0 | P82: 36 | Q82: 216 | R82: 0 | S82: 0 | T82: 36
A83: 1. Программа базовой подготовки | I83: производств. практика/преддипломная практика | M83: =M78+M75+M71+M67+M63 -> 0 | N83: =N78+N75+N71+N67+N63 -> 0 | O83: =O78+O75+O71+O67+O63 -> 0 | P83: =P78+P75+P71+P67+P63+P59 -> 36 | Q83: =Q78+Q75+Q71+Q67+Q63 -> 0 | R83: =R78+R75+R71+R67+R63 -> 144 | S83: =S78+S75+S71+S67+S63 -> 0 | T83: =T78+T75+T71+T67+T63 -> 216
A84: 1.1 Промежуточная аттестация (7 недель) 252
A85: 1.2. Дипломный проект (работа) | I85: экзаменов | M85: 0 | N85: 3 | O85: 0 | P85: 5 | Q85: 2 | R85: 3 | S85: 2 | T85: 3
A86: Выполнение дипломного проекта (работы) с 24.05 по 14.06 (всего 4 нед.) | I86: диф.зачетов | M86: 0 | N86: 7 | O86: 4 | P86: 1 | Q86: 3 | R86: 6 | S86: 4 | T86: 4
A87: Защита дипломного проекта (работы) с 15.06 по 28. 06 (всего 2) | I87: зачетов | M87: 2 | N87: 0 | O87: 2 | P87: 3 | Q87: 1 | R87: 0 | S87: 0 | T87: 2

Sheet Лист3 (hidden)
C1: 1 | D1: 5
A2: очная | C2: 2 | D2: 10 | E2: основного общего образования
A3: заочная | C3: 3 | E3: начального профессионального образования | J3: по программе базовой подготовки
A4: очно-заочная | C4: 4 | E4: среднего (полного) общего образования | J4: по программе углубленной подготовки
C5: 5
C6: 6
C7: 0 | J7: по специальности среднего профессионального образования
J8: по профессии начального профессионального образования

Sheet Перечень кабинетов
B1: Перечень кабинетов, лабораторий, мастерских и др. для подготовки
B2: по специальности СПО
A3: № | B3: Наименование
B4: Кабинеты:
A5: 1 | B5: cоциально-экономических дисциплин;
A6: 2 | B6: иностранного языка;
A7: 3 | B7: математики;
A8: 4 | B8: документационного обеспечения управления;
A9: 5 | B9: теории информации;
A10: 6 | B10: операционных систем и сред;
A11: 7 | B11: архитектуры электронно-вычислительных машин и вычислительных систем;
A12: 8 | B12: безопасности жизнедеятельности и охраны труда.
B13: Лаборатории:
A14: 1 | B14: обработки информации отраслевой направленности;
A15: 2 | B15: разработки, внедрения и адаптации программного обеспечения отраслевой направленности.
B16: Спортивный комплекс:
A17: 1 | B17: спортивный зал;
A18: 2 | B18: спортивная площадка;
A19: 3 | B19: стрелковый тир (в любой модификации, включая электронный) или место для стрельбы
B20: Залы:
A21: 1 | B21: библиотека, читальный зал с выходом в сеть Интернет;
A22: 2 | B22: актовый зал

Sheet Календарный график
J2: Календарный график учебного процесса
B4: Курс | C4: Сентябрь | H4: Октябрь | L4: Ноябрь | P4: Декабрь | U4: Январь | Y4: Февраль | AC4: Март | AH4: Апрель | AL4: Май | AP4: Июнь | AU4: Июль | AY4: Август
C5: 2 | D5: 9 | E5: 16 | F5: 23 | G5: 30 | H5: 7 | I5: 14 | J5: 21 | K5: 28 | L5: 4 | M5: 11 | N5: 18 | O5: 25 | P5: 2 | Q5: 9 | R5: 16 | S5: 23 | T5: 30 | U5: 6 | V5: 13 | W5: 20 | X5: 27 | Y5: 3 | Z5: 10 | AA5: 17 | AB5: 24 | AC5: 10 | AD5: 17 | AE5: 24 | AF5: 23 | AG5: 31 | AH5: 7 | AI5: 14 | AJ5: 21 | AK5: 28 | AL5: 5 | AM5: 12 | AN5: 19 | AO5: 26 | AP5: 2 | AQ5: 9 | AR5: 16 | AS5: 23 | AT5: 30 | AU5: 7 | AV5: 14 | AW5: 21 | AX5: 28 | AY5: 4 | AZ5: 11 | BA5: 18 | BB5: 25
C6: 8 | D6: 15 | E6: 22 | F6: 29 | G6: 6 | H6: 13 | I6: 20 | J6: 27 | K6: 3 | L6: 10 | M6: 17 | N6: 24 | O6: 1 | P6: 8 | Q6: 15 | R6: 22 | S6: 29 | T6: 5 | U6: 12 | V6: 19 | W6: 26 | X6: 2 | Y6: 9 | Z6: 16 | AA6: 23 | AB6: 2 | AC6: 16 | AD6: 23 | AE6: 30 | AF6: 29 | AG6: 6 | AH6: 13 | AI6: 20 | AJ6: 27 | AK6: 4 | AL6: 11 | AM6: 18 | AN6: 25 | AO6: 1 | AP6: 8 | AQ6: 15 | AR6: 22 | AS6: 29 | AT6: 6 | AU6: 13 | AV6: 20 | AW6: 27 | AX6: 3 | AY6: 10 | AZ6: 17 | BA6: 24 | BB6: 31
B7: 1 | T7: - | U7: - | AR7: А | AS7: А | AT7: - | AU7: - | AV7: - | AW7: - | AX7: - | AY7: - | AZ7: - | BA7: - | BB7: -
B8: 2 | T8: - | U8: - | AQ8: ОУ | AR8: ПП | AS8: А | AT8: - | AU8: - | AV8: - | AW8: - | AX8: - | AY8: - | AZ8: - | BA8: - | BB8: -
B9: 3 | M9: ОУ | N9: ОУ | O9: ОУ | P9: ОУ | Q9: ОУ | R9: ОУ | S9: А | T9: - | U9: - | AP9: ПП | AQ9: ПП | AR9: ПП | AS9: ПП | AT9: А | AU9: - | AV9: - | AW9: - | AX9: - | AY9: - | AZ9: - | BA9: - | BB9: -
B10: 4 | S10: А | T10: - | U10: - | AF10: ОУ | AG10: ПП | AH10: ПП | AI10: А | AJ10: ПД | AK10: ПД | AL10: ПД | AM10: ПД | AN10: ИА | AO10: ИА | AP10: ИА | AQ10: ИА | AR10: ИА | AS10: ИА
C11: 1 | D11: 2 | E11: 3 | F11: 4 | G11: 5 | H11: 6 | I11: 7 | J11: 8 | K11: 9 | L11: 10 | M11: 11 | N11: 12 | O11: 13 | P11: 14 | Q11: 15 | R11: 16 | S11: 17 | T11: 18 | U11: 19 | V11: 20 | W11: 21 | X11: 22 | Y11: 23 | Z11: 24 | AA11: 25 | AB11: 26 | AC11: 27 | AD11: 28 | AE11: 29 | AF11: 30 | AG11: 31 | AH11: 32 | AI11: 33 | AJ11: 34 | AK11: 35 | AL11: 36 | AM11: 37 | AN11: 38 | AO11: 39 | AP11: 40 | AQ11: 41 | AR11: 42 | AS11: 43 | AT11: 44 | AU11: 45 | AV11: 46 | AW11: 47 | AX11: 48 | AY11: 49 | AZ11: 50 | BA11: 51 | BB11: 52
C12: 1 | D12: 2 | E12: 3 | F12: 4 | G12: 5 | H12: 6 | I12: 7 | J12: 8 | K12: 9 | L12: 10 | M12: 11 | N12: 12 | O12: 13 | P12: 14 | Q12: 15 | R12: 16 | S12: 17 | V12: 1 | W12: 2 | X12: 3 | Y12: 4 | Z12: 5 | AA12: 6 | AB12: 7 | AC12: 8 | AD12: 9 | AE12: 10 | AF12: 11 | AG12: 12 | AH12: 13 | AI12: 14 | AJ12: 15 | AK12: 16 | AL12: 17 | AM12: 18 | AN12: 19 | AO12: 20 | AP12: 21 | AQ12: 22 | AR12: 23 | AS12: 24 | AT12: 25
D15: Условные обозначения
G17: - | H17: Теоретическое обучение | R17: ПП | T17: - | U17: Производственная практика | AD17: - | AF17: - | AG17: Каникулы | AN17: ПД | AP17: - | AQ17: Преддипломная практика
E19: ОУ | G19: - | H19: Учебная практика | R19: А | T19: - | U19: Промежуточная атестация | AD19: ИА | AF19: - | AG19: Итоговая аттестация
AK25: ,
AK39: ,

Sheet Лист1 (hidden)
